fUSD/lending_fUSD_20251212
["ID","MTS","AMOUNT","RATE_DAILY","PERIOD"]
[398337605,1765538046013,-500.0,0.0004,30]
[398337606,1765538046024,-500.0,0.0004,30]
[398337607,1765538046034,-652.45,0.0004,30]
[398337608,1765538046045,-500.0,0.0004,30]
[398337609,1765538046056,-584.74,0.0004,30]
[398337610,1765538046066,-500.0,0.0004,30]
[398337611,1765538046077,-1595.92,0.0004,30]
[398337612,1765538046088,-920.72,0.0004,30]
[398337613,1765538046099,-1243.86,0.0004,30]
[398337614,1765538046109,-500.0,0.0004,30]
[398337615,1765538046120,-616.65,0.0004,30]
[398337616,1765538046137,-3185.29,0.0004,30]
[398337617,1765538046151,-500.0,0.0004,30]
[398337618,1765538046162,-1899.74,0.0004,30]
[398337619,1765538046172,-767.47,0.0004,30]
[398337620,1765538046183,-3636.79,0.0004,30]
[398337621,1765538046193,-500.0,0.0004,30]
[398337622,1765538046206,-1218.06,0.0004,30]
[398337623,1765538046218,-1283.24,0.0004,30]
[398337624,1765538046230,-500.0,0.0004,30]
[398337625,1765538046242,-500.0,0.0004,30]
[398337626,1765538046254,-3032.18,0.0004,30]
[398337627,1765538046265,-500.0,0.0004,30]
[398337628,1765538046276,-616.0,0.0004,30]
[398337629,1765538046287,-1329.42,0.0004,30]
[398337630,1765538046298,-500.0,0.0004,30]
[398337631,1765538046309,-500.0,0.0004,30]
[398337632,1765538046319,-638.79,0.0004,30]
[398337633,1765538046331,-500.0,0.0004,30]
[398337634,1765538046341,-516.6469006,0.0004,30]
[398337635,1765538046351,-950.53,0.0004,30]
[398337636,1765538046362,-664.16,0.0004,30]
[398337637,1765538046373,-500.0,0.0004,30]
[398337638,1765538046385,-1066.97,0.0004,30]
[398337639,1765538046396,-385.48180709,0.0004,30]
[398337640,1765538046586,-599.13,0.0004,30]
[398337641,1765538046597,-500.0,0.0004,30]
[398337642,1765538046608,-1433.51,0.0004,30]
[398337643,1765538046619,-500.0,0.0004,30]
[398337644,1765538046630,-6840.01,0.0004,30]
[398337645,1765538046641,-2849.13,0.0004,30]
[398337646,1765538046651,-500.0,0.0004,30]
[398337647,1765538046661,-642.56,0.0004,30]
[398337648,1765538046671,-500.0,0.0004,30]
[398337649,1765538046681,-2147.05,0.0004,30]
[398337650,1765538046692,-6708.51,0.0004,30]
[398337651,1765538046703,-500.0,0.0004,30]
[398337652,1765538046714,-1746.8,0.0004,30]
[398337653,1765538046725,-500.0,0.0004,30]
[398337654,1765538046735,-1135.94,0.0004,30]
[398337655,1765538046745,-1293.36,0.0004,30]
[398337656,1765538046755,-500.0,0.0004,30]
[398337657,1765538046765,-500.0,0.0004,30]
[398337658,1765538046776,-463.5291146,0.0004,30]
[398337659,1765538046787,-500.0,0.0004,30]
[398337660,1765538046797,-1510.63,0.0004,30]
[398337661,1765538046808,-500.0,0.0004,30]
[398337662,1765538046818,-500.0,0.0004,30]
[398337663,1765538046829,-911.19,0.0004,30]
[398337664,1765538046839,-2130.63,0.0004,30]
[398337665,1765538046850,-500.0,0.0004,30]
[398337666,1765538046865,-500.0,0.0004,30]
[398337667,1765538046876,-1011.94,0.0004,30]
[398337668,1765538046887,-1929.57,0.0004,30]
[398337669,1765538046897,-657.48,0.0004,30]
[398337670,1765538046908,-1120.09,0.0004,30]
[398337671,1765538046918,-732.14,0.0004,30]
[398337672,1765538046928,-4030.69,0.0004,30]
[398337673,1765538046938,-500.0,0.0004,30]
[398337674,1765538046949,-500.0,0.0004,30]
[398337675,1765538046960,-995.54,0.0004,30]
[398337676,1765538046970,-1083.81,0.0004,30]
[398337677,1765538046980,-726.94,0.0004,30]
[398337678,1765538046992,-3238.19,0.0004,30]
[398337679,1765538047002,-608.27,0.0004,30]
[398337680,1765538047012,-2367.27,0.0004,30]
[398337681,1765538047023,-500.0,0.0004,30]
[398337682,1765538047034,-500.0,0.0004,30]
[398337683,1765538047044,-500.0,0.0004,30]
[398337684,1765538047059,-583.32,0.0004,30]
[398337685,1765538047070,-500.0,0.0004,30]
[398337686,1765538047081,-500.0,0.0004,30]
[398337687,1765538047091,-625.74,0.0004,30]
[398337688,1765538047102,-500.0,0.0004,30]
[398337689,1765538047113,-500.0,0.0004,30]
[398337690,1765538047123,-500.0,0.0004,30]
[398337691,1765538047134,-2843.71,0.0004,30]
[398337692,1765538047145,-1329.63,0.0004,30]
[398337693,1765538047158,-500.0,0.0004,30]
[398337694,1765538047169,-500.0,0.0004,30]
[398337695,1765538047180,-605.17,0.0004,30]
[398337696,1765538047191,-677.17,0.0004,30]
[398337697,1765538047201,-610.47,0.0004,30]
[398337698,1765538047213,-1219.89,0.0004,30]
[398337699,1765538047224,-1003.5,0.0004,30]
[398337700,1765538047234,-658.88,0.0004,30]
[398337701,1765538047245,-621.26,0.0004,30]
[398337702,1765538047258,-500.0,0.0004,30]
[398337703,1765538047269,-500.0,0.0004,30]
[398337704,1765538047280,-500.0,0.0004,30]
[398337705,1765538047291,-2089.28,0.0004,30]
[398337706,1765538047301,-500.0,0.0004,30]
[398337707,1765538047313,-777.33,0.0004,30]
[398337708,1765538047323,-513.02727296,0.0004,30]
[398337709,1765538047333,-500.0,0.0004,30]
[398337710,1765538047344,-506.96,0.0004,30]
[398337711,1765538047355,-600.44,0.0004,30]
[398337712,1765538047367,-557.42,0.0004,30]
[398337713,1765538047377,-500.0,0.0004,30]
[398337714,1765538047388,-610.54,0.0004,30]
[398337715,1765538047398,-500.0,0.0004,30]
[398337716,1765538047409,-516.74,0.0004,30]
[398337717,1765538047419,-500.0,0.0004,15]
[398337718,1765538047430,-759.14,0.0004,30]
[398337719,1765538047440,-571.0,0.0004,30]
[398337720,1765538047451,-588.85,0.0004,30]
[398337721,1765538047461,-1161.86,0.0004,30]
[398337722,1765538047471,-1044.6,0.0004,30]
[398337723,1765538047483,-2199.62,0.0004,30]
[398337724,1765538047493,-500.0,0.0004,30]
[398337725,1765538047503,-500.0,0.0004,30]
[398337726,1765538047514,-503.79,0.0004,30]
[398337727,1765538047525,-500.0,0.0004,30]
[398337728,1765538047535,-500.0,0.0004,30]
[398337729,1765538047546,-500.0,0.0004,30]
[398337730,1765538047556,-500.0,0.0004,30]
[398337731,1765538047567,-500.0,0.0004,30]
[398337732,1765538047577,-809.01,0.0004,30]
[398337733,1765538047588,-500.0,0.0004,30]
[398337734,1765538047598,-578.6,0.0004,30]
[398337735,1765538047609,-500.0,0.0004,30]
[398337736,1765538047619,-719.27,0.0004,30]
[398337737,1765538047630,-2620.34,0.0004,30]
[398337738,1765538047641,-1731.68,0.0004,30]
[398337739,1765538047651,-517.1,0.0004,30]
[398337740,1765538047661,-2018.77,0.0004,30]
[398337741,1765538047671,-500.0,0.0004,30]
[398337742,1765538047681,-822.61,0.0004,30]
[398337743,1765538047691,-500.0,0.0004,30]
[398337744,1765538047701,-511.8,0.0004,30]
[398337745,1765538047711,-626.22941005,0.0004,30]
[398337746,1765538047721,-1929.49,0.0004,30]
[398337747,1765538047732,-1245.76,0.0004,30]
[398337748,1765538047741,-500.0,0.0004,30]
[398337749,1765538047751,-629.76,0.0004,30]
[398337750,1765538047762,-500.0,0.0004,30]
[398337751,1765538047772,-504.87,0.0004,30]
[398337752,1765538047782,-2747.32,0.0004,30]
[398337753,1765538047793,-3082.74,0.0004,30]
[398337754,1765538047802,-500.0,0.0004,30]
[398337755,1765538047812,-1765.66,0.0004,30]
[398337756,1765538047822,-992.27,0.0004,30]
[398337757,1765538047832,-810.69,0.0004,30]
[398337758,1765538047842,-669.73,0.0004,30]
[398337759,1765538047853,-1342.66,0.0004,30]
[398337760,1765538047867,-648.8,0.0004,30]
[398337761,1765538047877,-682.03,0.0004,30]
[398337762,1765538047888,-1864.3,0.0004,30]
[398337763,1765538047898,-500.0,0.0004,30]
[398337764,1765538047911,-689.18,0.0004,30]
[398337765,1765538047921,-598.31,0.0004,30]
[398337766,1765538047933,-792.27,0.0004,30]
[398337767,1765538047943,-2535.84,0.0004,30]
[398337768,1765538047952,-500.0,0.0004,30]
[398337769,1765538047962,-500.0,0.0004,30]
[398337770,1765538047972,-500.0,0.0004,30]
[398337771,1765538047982,-1454.84,0.0004,30]
[398337772,1765538047997,-500.0,0.0004,30]
[398337773,1765538048007,-836.48,0.0004,30]
[398337774,1765538048017,-500.0,0.0004,30]
[398337775,1765538048028,-630.54,0.0004,30]
[398337776,1765538048038,-542.7,0.0004,30]
[398337777,1765538048048,-500.0,0.0004,30]
[398337778,1765538048059,-625.15,0.0004,30]
[398337779,1765538048069,-2978.69,0.0004,30]
[398337780,1765538048079,-500.0,0.0004,30]
[398337781,1765538048091,-566.99,0.0004,30]
[398337782,1765538048101,-501.3,0.0004,30]
[398337783,1765538048112,-1577.35,0.0004,30]
[398337784,1765538048124,-500.0,0.0004,30]
[398337785,1765538048134,-386.51228467,0.0004,30]
[398337786,1765538048145,-716.61,0.0004,30]
[398337787,1765538048157,-501.59985241,0.0004,30]
[398337788,1765538048168,-2248.13,0.0004,30]
[398337789,1765538048178,-556.61,0.0004,30]
[398337790,1765538048191,-500.0,0.0004,30]
[398337791,1765538048202,-500.0,0.0004,30]
[398337792,1765538048212,-1673.77,0.0004,30]
[398337793,1765538048222,-500.0,0.0004,30]
[398337794,1765538048232,-2331.84,0.0004,30]
[398337795,1765538048242,-1028.79,0.0004,30]
[398337796,1765538048252,-2147.02,0.0004,30]
[398337797,1765538048263,-1527.47,0.0004,30]
[398337798,1765538048274,-500.0,0.0004,30]
[398337799,1765538048284,-536.32193874,0.0004,30]
[398337800,1765538048294,-500.28,0.0004,30]
[398337801,1765538048304,-1715.19,0.0004,30]
[398337802,1765538048315,-594.01,0.0004,30]
[398337803,1765538048325,-1740.0,0.0004,30]
[398337804,1765538048336,-567.29,0.0004,30]
[398337805,1765538048346,-500.0,0.0004,30]
[398337806,1765538048356,-633.47,0.0004,30]
[398337807,1765538048367,-507.64115652,0.0004,30]
[398337808,1765538048377,-2330.09,0.0004,30]
[398337809,1765538048387,-500.0,0.0004,30]
[398337810,1765538048397,-527.63,0.0004,30]
[398337811,1765538048406,-500.0,0.0004,30]
[398337812,1765538048416,-1444.41,0.0004,30]
[398337813,1765538048427,-563.14,0.0004,30]
[398337814,1765538048436,-588.23,0.0004,30]
[398337815,1765538048453,-500.0,0.0004,30]
[398337816,1765538048471,-500.0,0.0004,30]
[398337817,1765538048484,-1747.95,0.0004,30]
[398337818,1765538048494,-763.9,0.0004,30]
[398337819,1765538048504,-500.0,0.0004,30]
[398337820,1765538048514,-517.77614943,0.0004,30]
[398337821,1765538048523,-818.9,0.0004,30]
[398337822,1765538048533,-972.17,0.0004,30]
[398337823,1765538048544,-573.6,0.0004,30]
[398337824,1765538048554,-556.13,0.0004,30]
[398337825,1765538048564,-500.0,0.0004,30]
[398337826,1765538048574,-666.96,0.0004,30]
[398337827,1765538048584,-500.0,0.0004,30]
[398337828,1765538048594,-1283.05,0.0004,30]
[398337829,1765538048603,-798.2,0.0004,30]
[398337830,1765538048613,-6586.39,0.0004,30]
[398337831,1765538048623,-989.92,0.0004,30]
[398337832,1765538048633,-500.0,0.0004,30]
[398337833,1765538048643,-500.0,0.0004,30]
[398337834,1765538048653,-502.68,0.0004,30]
[398337835,1765538048663,-500.0,0.0004,30]
[398337836,1765538048672,-500.0,0.0004,30]
[398337837,1765538048682,-500.0,0.0004,30]
[398337838,1765538048692,-500.0,0.0004,30]
[398337839,1765538048702,-709.01,0.0004,30]
[398337840,1765538048712,-500.0,0.0004,30]
[398337841,1765538048721,-500.0,0.0004,30]
[398337842,1765538048731,-1180.74,0.0004,30]
[398337843,1765538048741,-589.52,0.0004,30]
[398337844,1765538048751,-529.51,0.0004,30]
[398337845,1765538048761,-500.0,0.0004,30]
[398337846,1765538048771,-500.0,0.0004,30]
[398337847,1765538048780,-500.0,0.0004,30]
[398337848,1765538048791,-500.0,0.0004,30]
[398337849,1765538048800,-500.0,0.0004,30]
[398337850,1765538048811,-720.32,0.0004,30]
[398337851,1765538048820,-509.99,0.0004,30]
[398337852,1765538048830,-500.0,0.0004,30]
[398337853,1765538048840,-752.38,0.0004,30]
[398337854,1765538048851,-500.0,0.0004,30]
[398337855,1765538048865,-899.81,0.0004,30]
[398337856,1765538048875,-500.0,0.0004,30]
[398337857,1765538048884,-500.0,0.0004,30]
[398337858,1765538048895,-634.12,0.0004,30]
[398337860,1765538049527,-1738.8,0.0004,30]
[398337861,1765538049538,-500.0,0.0004,30]
[398337862,1765538049548,-622.13,0.0004,30]
[398337863,1765538049557,-500.0,0.0004,30]
[398337864,1765538049567,-10008.33,0.0004,30]
[398337865,1765538049576,-1816.12,0.0004,30]
[398337866,1765538049586,-500.0,0.0004,30]
[398337867,1765538049595,-1222.19,0.0004,30]
[398337868,1765538049604,-500.0,0.0004,30]
[398337870,1765538049614,-506.67,0.0004,30]
[398337871,1765538049623,-500.0,0.0004,30]
[398337872,1765538049632,-614.15,0.0004,30]
[398337873,1765538049642,-853.5,0.0004,30]
[398337874,1765538049652,-867.61,0.0004,30]
[398337875,1765538049666,-642.79,0.0004,30]
[398337876,1765538049675,-500.0,0.0004,30]
[398337877,1765538049685,-1730.62,0.0004,30]
[398337878,1765538049695,-500.0,0.0004,30]
[398337879,1765538049704,-500.0,0.0004,30]
[398337880,1765538049714,-500.0,0.0004,30]
[398337881,1765538049724,-2044.69,0.0004,30]
[398337882,1765538049733,-5043.62,0.0004,30]
[398337883,1765538049743,-500.0,0.0004,30]
[398337884,1765538049753,-500.0,0.0004,30]
[398337885,1765538049763,-1215.55,0.0004,30]
[398337886,1765538049772,-500.0,0.0004,30]
[398337887,1765538049782,-500.0,0.0004,30]
[398337888,1765538049792,-500.0,0.0004,30]
[398337889,1765538049801,-500.0,0.0004,30]
[398337890,1765538049812,-1545.49,0.0004,30]
[398337891,1765538049822,-660.88,0.0004,30]
[398337892,1765538049832,-1589.48,0.0004,30]
[398337893,1765538049842,-628.02,0.0004,30]
[398337894,1765538049852,-626.53,0.0004,30]
[398337895,1765538049866,-602.06,0.0004,30]
[398337896,1765538049876,-500.0,0.0004,30]
[398337897,1765538049885,-840.42,0.0004,30]
[398337898,1765538049894,-500.0,0.0004,30]
[398337899,1765538049903,-699.47,0.0004,30]
[398337900,1765538049912,-905.19,0.0004,30]
[398337901,1765538049921,-752.57,0.0004,30]
[398337902,1765538049931,-2585.93,0.0004,30]
[398337903,1765538049943,-789.34,0.0004,30]
[398337904,1765538049953,-3440.78,0.0004,30]
[398337905,1765538049963,-563.79,0.0004,30]
[398337906,1765538049974,-500.0,0.0004,30]
[398337907,1765538049984,-500.0,0.0004,30]
[398337908,1765538049994,-571.37,0.0004,30]
[398337909,1765538050004,-500.54,0.0004,30]
[398337910,1765538050013,-500.0,0.0004,30]
[398337911,1765538050023,-500.0,0.0004,30]
[398337912,1765538050033,-509.62,0.0004,30]
[398337913,1765538050047,-669.04,0.0004,30]
[398337914,1765538050057,-3771.23,0.0004,30]
[398337915,1765538050068,-813.18,0.0004,30]
[398337916,1765538050078,-500.0,0.0004,30]
[398337917,1765538050087,-500.0,0.0004,30]
[398337918,1765538050098,-1179.73,0.0004,30]
[398337919,1765538050108,-500.0,0.0004,30]
[398337920,1765538050118,-500.0,0.0004,30]
[398337921,1765538050128,-1235.8,0.0004,30]
[398337922,1765538050138,-1360.54,0.0004,30]
[398337923,1765538050148,-604.12,0.0004,30]
[398337924,1765538050159,-500.0,0.0004,30]
[398337925,1765538050169,-500.0,0.0004,30]
[398337926,1765538050179,-1586.65,0.0004,30]
[398337927,1765538050190,-500.0,0.0004,2]
[398337928,1765538050199,-500.0,0.0004,30]
[398337929,1765538050210,-500.0,0.0004,30]
[398337930,1765538050221,-972.77,0.0004,30]
[398337931,1765538050231,-500.0,0.0004,30]
[398337932,1765538050241,-500.0,0.0004,30]
[398337933,1765538050250,-500.0,0.0004,30]
[398337934,1765538050260,-500.0,0.0004,30]
[398337935,1765538050270,-500.0,0.0004,30]
[398337936,1765538050280,-4363.05,0.0004,30]
[398337937,1765538050291,-731.82,0.0004,30]
[398337938,1765538050301,-1418.58,0.0004,30]
[398337939,1765538050311,-1625.02,0.0004,30]
[398337940,1765538050321,-500.0,0.0004,30]
[398337941,1765538050331,-500.0,0.0004,30]
[398337942,1765538050341,-500.0,0.0004,30]
[398337943,1765538050352,-500.0,0.0004,30]
[398337944,1765538050361,-500.0,0.0004,30]
[398337945,1765538050372,-500.0,0.0004,30]
[398337946,1765538050382,-805.19,0.0004,30]
[398337947,1765538050392,-1679.93,0.0004,30]
[398337948,1765538050403,-500.0,0.0004,30]
[398337949,1765538050413,-500.0,0.0004,30]
[398337950,1765538050427,-11739.26,0.0004,30]
[398337951,1765538050436,-510.13,0.0004,30]
[398337952,1765538050447,-500.0,0.0004,30]
[398337953,1765538050459,-500.0,0.0004,30]
[398337954,1765538050469,-500.0,0.0004,30]
[398337955,1765538050479,-1704.19,0.0004,30]
[398337956,1765538050490,-878.65,0.0004,30]
[398337957,1765538050502,-500.0,0.0004,30]
[398337958,1765538050513,-619.07,0.0004,30]
[398337959,1765538050524,-2892.66,0.0004,30]
[398337960,1765538050535,-500.0,0.0004,30]
[398337961,1765538050546,-500.0,0.0004,30]
[398337962,1765538050557,-500.0,0.0004,30]
[398337963,1765538050567,-1899.29,0.0004,30]
[398337964,1765538050577,-500.0,0.0004,30]
[398337965,1765538050587,-1019.28,0.0004,30]
[398337966,1765538050597,-500.0,0.0004,30]
[398337967,1765538050606,-500.0,0.0004,30]
[398337968,1765538050616,-1418.57,0.0004,30]
[398337969,1765538050627,-442.23642886,0.0004,30]
[398337970,1765538050637,-500.0,0.0004,30]
[398337971,1765538050646,-500.0,0.0004,30]
[398337972,1765538050655,-500.0,0.0004,30]
[398337973,1765538050665,-500.0,0.0004,30]
[398337974,1765538050675,-736.31,0.0004,30]
[398337975,1765538050685,-500.0,0.0004,30]
[398337976,1765538050694,-500.0,0.0004,30]
[398337977,1765538050704,-803.38,0.0004,30]
[398337978,1765538050714,-500.0,0.0004,30]
[398337979,1765538050724,-522.15,0.0004,30]
[398337980,1765538050733,-500.0,0.0004,30]
[398337981,1765538050743,-460.95109389,0.0004,30]
[398337982,1765538050753,-500.0,0.0004,30]
[398337983,1765538050762,-500.0,0.0004,30]
[398337984,1765538050772,-500.0,0.0004,30]
[398337985,1765538050782,-1055.47,0.0004,30]
[398337986,1765538050791,-694.39,0.0004,30]
[398337987,1765538050801,-847.8398743,0.0004,30]
[398337988,1765538050811,-1480.3,0.0004,30]
[398337989,1765538050820,-1529.14,0.0004,30]
[398337990,1765538050830,-1887.69,0.0004,30]
[398337991,1765538050839,-500.0,0.0004,30]
[398337992,1765538050849,-1537.38,0.0004,30]
[398337993,1765538050862,-500.0,0.0004,30]
[398337994,1765538050871,-814.49,0.0004,30]
[398337995,1765538050881,-500.0,0.0004,30]
[398337996,1765538050891,-500.0,0.0004,30]
[398337997,1765538050900,-878.0,0.0004,30]
[398337998,1765538050916,-277.98550115,0.0004,30]
[398337999,1765538050927,-542.52,0.0004,30]
[398338000,1765538050937,-500.0,0.0004,30]
[398338001,1765538050947,-500.0,0.0004,30]
[398338002,1765538050957,-500.0,0.0004,30]
[398338003,1765538050967,-1609.53,0.0004,30]
[398338004,1765538050976,-500.0,0.0004,30]
[398338005,1765538050987,-1220.84,0.0004,30]
[398338006,1765538050997,-500.0,0.0004,30]
[398338007,1765538051007,-1987.44,0.0004,30]
[398338008,1765538051017,-410.42914116,0.0004,30]
[398338009,1765538051028,-500.0,0.0004,30]
[398338010,1765538051038,-1330.17,0.0004,30]
[398338011,1765538051051,-994.63,0.0004,30]
[398338012,1765538051061,-1382.15,0.0004,30]
[398338013,1765538051070,-500.0,0.0004,30]
[398338014,1765538051080,-500.0,0.0004,30]
[398338015,1765538051089,-1159.62,0.0004,30]
[398338016,1765538051099,-500.0,0.0004,30]
[398338017,1765538051108,-500.0,0.0004,30]
[398338018,1765538051118,-504.18393948,0.0004,30]
[398338019,1765538051129,-1136.89,0.0004,30]
[398338020,1765538051139,-556.58,0.0004,30]
[398338021,1765538051149,-9826.53,0.0004,30]
[398338022,1765538051158,-500.0,0.0004,30]
[398338023,1765538051168,-500.0,0.0004,30]
[398338024,1765538051179,-972.17,0.0004,30]
[398338025,1765538051189,-500.0,0.0004,30]
[398338026,1765538051201,-731.37,0.0004,30]
[398338027,1765538051211,-1614.96,0.0004,30]
[398338028,1765538051221,-500.0,0.0004,30]
[398338029,1765538051232,-4738.09,0.0004,30]
[398338030,1765538051242,-1327.17,0.0004,30]
[398338031,1765538051252,-500.0,0.0004,30]
[398338032,1765538051262,-3631.76,0.0004,30]
[398338033,1765538051272,-500.0,0.0004,30]
[398338034,1765538051282,-459.17787832,0.0004,30]
[398338035,1765538051292,-500.0,0.0004,30]
[398338036,1765538051302,-500.0,0.0004,30]
[398338037,1765538051311,-963.98,0.0004,30]
[398338038,1765538051320,-500.0,0.0004,30]
[398338039,1765538051331,-634.95,0.0004,30]
[398338040,1765538051340,-3329.8,0.0004,30]
[398338041,1765538051350,-500.0,0.0004,30]
[398338042,1765538051359,-500.0,0.0004,30]
[398338043,1765538051369,-512.53807733,0.0004,30]
[398338044,1765538051379,-1124.07,0.0004,30]
[398338045,1765538051389,-537.44580942,0.0004,30]
[398338046,1765538051398,-500.0,0.0004,30]
[398338047,1765538051407,-876.92,0.0004,30]
[398338048,1765538051417,-500.0,0.0004,30]
[398338049,1765538051427,-500.0,0.0004,30]
[398338050,1765538051436,-500.0,0.0004,30]
[398338051,1765538051445,-500.0,0.0004,30]
[398338052,1765538051454,-500.0,0.0004,30]
[398338053,1765538051464,-500.0,0.0004,30]
[398338054,1765538051473,-500.0,0.0004,30]
[398338055,1765538051483,-500.0,0.0004,30]
[398338056,1765538051492,-500.0,0.0004,30]
[398338057,1765538051502,-613.85,0.0004,30]
[398338058,1765538051512,-500.0,0.0004,30]
[398338059,1765538051521,-705.22,0.0004,30]
[398338060,1765538051530,-500.0,0.0004,30]
[398338061,1765538051540,-601.44,0.0004,30]
[398338062,1765538051550,-680.86,0.0004,30]
[398338063,1765538051559,-500.0,0.0004,30]
[398338064,1765538051569,-322.08721861,0.0004,30]
[398338065,1765538051578,-512.19570931,0.0004,30]
[398338066,1765538051588,-500.0,0.0004,30]
[398338067,1765538051597,-1255.36,0.0004,30]
[398338068,1765538051607,-500.0,0.0004,30]
[398338069,1765538051617,-500.0,0.0004,30]
[398338070,1765538051627,-757.92,0.0004,30]
[398338071,1765538051637,-500.0,0.0004,30]
[398338072,1765538051647,-517.86945743,0.0004,30]
[398338073,1765538051657,-976.99,0.0004,30]
[398338074,1765538051667,-681.9,0.0004,30]
[398338075,1765538051677,-500.0,0.0004,30]
[398338076,1765538051687,-500.0,0.0004,30]
[398338077,1765538051697,-766.68,0.0004,30]
[398338078,1765538051706,-500.0,0.0004,30]
[398338079,1765538051715,-500.0,0.0004,30]
[398338080,1765538051724,-500.0,0.0004,30]
[398338081,1765538051735,-500.0,0.0004,30]
[398338082,1765538051744,-307.24431125,0.0004,30]
[398338083,1765538051753,-511.05739939,0.0004,30]
[398338084,1765538051763,-500.0,0.0004,30]
[398338085,1765538051773,-500.0,0.0004,30]
[398338086,1765538051782,-500.0,0.0004,30]
[398338087,1765538051792,-820.89,0.0004,30]
[398338088,1765538051801,-500.0,0.0004,30]
[398338089,1765538051811,-508.82511052,0.0004,30]
[398338090,1765538051820,-1425.77,0.0004,30]
[398338091,1765538051830,-2237.4,0.0004,30]
[398338092,1765538051840,-500.0,0.0004,30]
[398338093,1765538051849,-673.29,0.0004,30]
[398338094,1765538051860,-574.67,0.0004,30]
[398338095,1765538051872,-500.0,0.0004,30]
[398338096,1765538051882,-500.0,0.0004,30]
[398338097,1765538051892,-1020.61,0.0004,30]
[398338098,1765538051902,-500.0,0.0004,30]
[398338099,1765538051912,-749.57,0.0004,30]
[398338100,1765538051922,-500.0,0.0004,30]
[398338101,1765538051931,-558.5,0.0004,30]
[398338102,1765538051942,-500.0,0.0004,30]
[398338103,1765538052105,-500.0,0.0004,30]
[398338104,1765538052115,-1224.23,0.0004,30]
[398338105,1765538052125,-628.4,0.0004,30]
[398338106,1765538052136,-500.0,0.0004,30]